Cogmind - Beta 10.1 @@@ ROGUE MODE // 2020.10.11 @ 01:40:17 Player: Tmvn Result: Destroyed by as-02744 with Assembled Heavy Rifle Performance ------------- Evolutions (0) 0 Regions Visited (4) 800 Robots Destroyed (21) 105 Value Destroyed (469) 469 Prototype IDs (25) 500 Alien Tech Used (0) 0 Bonus (300) 300 TOTAL SCORE: 2174 Bonus ------- Aligned with FarCom 300 Cogmind --------- Core Integrity 0/250 Matter 257/300 Energy 99/100 System Corruption 1% Temperature Cool (0) Movement Core (800) Ox15 Location -9/Mines Parts ------- > --- POWER (1) -------- (None) > --- PROPULSION (2) --- (None) > --- UTILITY (2) ------ Large Storage Unit High-capacity Storage Unit > --- WEAPON (2) ------- (None) > --- INVENTORY (18) --- Light Ion Engine Light Ion Engine Light Treads Light Treads Large Matter Pod (150) EM Pulse Gun Small Laser Heavy Assault Rifle Heavy Assault Rifle Longsword +1 Peak State ------------ > --- POWER ------------ Ion Engine > --- PROPULSION ------- Light Treads Light Treads > --- UTILITY ---------- Large Storage Unit Signal Interpreter > --- WEAPON ----------- Heavy Assault Rifle Heavy Assault Rifle > --- INVENTORY -------- Light Ion Engine Light Ion Engine Light Treads Large Storage Unit EM Pulse Gun Small Laser Heavy Assault Rifle Heavy Assault Rifle [Rating: 10] Favorites ----------- Power Ion Engine Engine Ion Engine Propulsion Light Treads Treads Light Treads Leg Aluminum Leg Utility Large Storage Unit Storage Large Storage Unit Processor Signal Interpreter Weapon Heavy Assault Rifle Energy Gun EM Pulse Gun Ballistic Gun Heavy Assault Rifle Build | -11 -10 -10 -10 -9 ------- Run | Scr Mat Min Exi Min Slots Evolved . | . . . . . Power . | . . . . . Propulsion . | . . . . . Utility . | . . . . . Weapon . | . . . . . Parts Attached 14 | . 12 . 2 . Power 2 | . 2 . . . Engine 2 | . 2 . . . Core . | . . . . . Reactor . | . . . . . Propulsion 4 | . 4 . . . Treads 4 | . 4 . . . Leg . | . . . . . Wheel . | . . . . . Hover . | . . . . . Flight . | . . . . . Utility 4 | . 2 . 2 . Device . | . . . . . Storage 3 | . 1 . 2 . Processor 1 | . 1 . . . Hackware . | . . . . . Protection . | . . . . . Artifact . | . . . . . Weapon 4 | . 4 . . . Energy Gun 1 | . 1 . . . Energy Cannon . | . . . . . Ballistic Gun 3 | . 3 . . . Ballistic Cannon . | . . . . . Launcher . | . . . . . Special Weapon . | . . . . . Impact Weapon . | . . . . . Slashing Weapon . | . . . . . Piercing Weapon . | . . . . . Special Melee Weapon . | . . . . . Unidentified Prototypes . | . . . . . Parts Lost 8 | . 3 . . 5 Power 2 | . 1 . . 1 Propulsion 3 | . 1 . . 2 Utility . | . . . . . Weapon 3 | . 1 . . 2 Highest Loss Streak 5 | . 1 . . 5 Average Slot Usage (%) 94 | . 90 100 100 94 Engine 13 | . 14 14 14 12 Treads 27 | . 26 28 28 26 Storage 17 | . 14 14 24 28 Processor 5 | . 6 14 3 . Energy Gun 2 | . 4 . . . Ballistic Gun 25 | . 23 28 28 25 Naked Turns . | . . . . . Heaviest Build 59 | 13 27 27 59 59 Greatest Support 40 | 20 40 40 40 40 Greatest Overweight (x) 15 | . 4 . 1 15 Average Overweight (x) . | . . . . 1 Largest Inventory Capacity 18 | . 10 10 18 18 Average Capacity 10 | . 6 10 15 18 Most Carried 10 | . 10 10 10 10 Average Carried 7 | . 6 9 9 10 Final Capacity 18 | 6 10 10 18 18 Final Carried 10 | 6 10 10 10 10 Class Distribution -------------------- 100% | Mutant Dominant Class ---------------- Mutant | -10/Materials Mutant | -10/Mines Mutant | -10/Exiles Mutant | -9/Mines Resources | -11 -10 -10 -10 -9 ----------- Run | Scr Mat Min Exi Min Matter Collected 582 | 200 223 159 . . Remotely . | . . . . . Salvage Created 737 | . 622 99 . 16 Parts 41 | . 39 2 . . Haulers Intercepted 1 | . 1 . . . Recyclers Shooed . | . . . . . Parts Field Recycled . | . . . . . Retrieved Matter . | . . . . . Parts Self-Destructed . | . . . . . Prevented . | . . . . . Kills | -11 -10 -10 -10 -9 ------- Run | Scr Mat Min Exi Min Combat Hostiles Destroyed 18 | . 15 2 . 1 Guns 18 | . 15 2 . 1 Classes Destroyed 6 | . 5 . . 1 Worker 1 | . 1 . . . Hauler 1 | . 1 . . . Recycler 1 | . 1 . . . Swarmer 6 | . 6 . . . Grunt 11 | . 9 2 . . Assembled 1 | . . . . 1 Best Kill Streak 4 | . 4 2 . 1 Combat Bots Only 3 | . 3 1 . 1 Max Kills in Single Turn 1 | . 1 1 . 1 Gunslinging . | . . . . . Exploded . | . . . . . Melee . | . . . . . Uniques/NPCs Destroyed . | . . . . . Combat | -11 -10 -10 -10 -9 -------- Run | Scr Mat Min Exi Min Damage Taken 1481 | . 721 106 . 654 Core 256 | . 126 29 . 101 Absorbed by Shields . | . . . . . Core Remaining (%) 100 | 100 . . . . Volleys Fired 73 | . 55 10 . 8 Largest 2 | . 2 2 . 2 Hottest 60 | . 60 46 . 46 Shots Fired 145 | . 109 20 . 16 Gun 145 | . 109 20 . 16 Cannon . | . . . . . Launcher . | . . . . . Special . | . . . . . Kinetic 121 | . 85 20 . 16 Thermal 12 | . 12 . . . Explosive . | . . . . . Electromagnetic 12 | . 12 . . . Robot Hit Streak 15 | . 15 10 . 8 Robot Miss Streak 6 | . 6 2 . 3 Penetration Max . | . . . . . Secondary Targets 4 | . 3 1 . . Max Gunslinging Chain 1 | . 1 1 . . Shots Hit Robots 104 | . 77 16 . 11 Core Hits 37 | . 29 4 . 4 Critical Hits 1 | . 1 . . . Critical Kills . | . . . . . Critical Parts Destroyed 1 | . 1 . . . Melee Attacks . | . . . . . Impact . | . . . . . Slashing . | . . . . . Piercing . | . . . . . Sneak Attacks . | . . . . . Combat Hostiles . | . . . . . Follow-up Attacks . | . . . . . Damage Inflicted 1467 | . 1054 249 . 164 Guns 1467 | . 1054 249 . 164 Cannons . | . . . . . Explosions . | . . . . . Melee . | . . . . . Ramming . | . . . . . Kinetic 1228 | . 815 249 . 164 Thermal 101 | . 101 . . . Explosive . | . . . . . Electromagnetic 138 | . 138 . . . Impact . | . . . . . Slashing . | . . . . . Piercing . | . . . . . Highest Corruption 1 | . 1 1 1 1 Average Corruption 1 | . 1 1 1 1 Corruption Purged . | . . . . . Effects 10 | . 3 2 5 . Message Errors 7 | . 2 2 3 . Energy Discharges 2 | . . . 2 . Targeting Errors 1 | . 1 . . . Overload Shots . | . . . . . Overflow Damage . | . . . . . Projectiles . | . . . . . Explosions . | . . . . . Melee . | . . . . . Knockbacks . | . . . . . Impact . | . . . . . Kinetic . | . . . . . Secondary . | . . . . . Self-Inflicted Damage . | . . . . . Shots . | . . . . . Rammed . | . . . . . Targets Rammed . | . . . . . Kicked . | . . . . . Crushed . | . . . . . Highest Temperature 55 | . 54 4 . 55 Average Temperature 16 | . 15 4 . 24 Received Heat Transfer 521 | . 318 63 . 140 Siege Activations . | . . . . . Robots Corrupted . | . . . . . Combat Hostiles . | . . . . . Parts Fried . | . . . . . Impact Corruptions . | . . . . . Robots Melted . | . . . . . Combat Hostiles . | . . . . . Parts Melted . | . . . . . Heat Transferred 225 | . 225 . . . Parts Sabotaged . | . . . . . Parts Stolen . | . . . . . Parts Stripped . | . . . . . Power Chain Reactions . | . . . . . Missiles Intercepted . | . . . . . Alert | -11 -10 -10 -10 -9 ------- Run | Scr Mat Min Exi Min Peak Influence 213 | . 213 64 . . Initial 14 | . . 14 . . Average 51 | . 55 60 . . Maximum Alert Level 1 | . 1 . . . Low Security (%) 98 | . 98 100 . 100 Level 1 1 | . 1 . . . Level 2 . | . . . . . Level 3 . | . . . . . Level 4 . | . . . . . Level 5 . | . . . . . High Security . | . . . . . Max Security . | . . . . . Squads Dispatched 2 | . 2 . . . Investigation 2 | . 2 . . . Extermination . | . . . . . Reinforcement . | . . . . . Assault . | . . . . . Garrison . | . . . . . Intercept . | . . . . . Construction Impeded . | . . . . . Haulers Reinforced . | . . . . . Stealth | -11 -10 -10 -10 -9 --------- Run | Scr Mat Min Exi Min Distress Signals 2 | . 2 . . . Communications Jammed . | . . . . . Distress Signals . | . . . . . Times Spotted 41 | . 25 1 . 15 Peak Tracking Total 9 | . 4 1 . 9 Tactical Retreats 1 | . . . . 1 Traps | -11 -10 -10 -10 -9 ------- Run | Scr Mat Min Exi Min Traps Triggered 1 | . 1 . . . Indirectly . | . . . . . Trap Hack Attempts . | . . . . . Triggered . | . . . . . Disarmed 4 | . 4 . . . Reprogrammed . | . . . . . Reused . | . . . . . Traps Extracted . | . . . . . Installed . | . . . . . Triggered . | . . . . . Exploded 2 | . . . 2 . Machines | -11 -10 -10 -10 -9 ---------- Run | Scr Mat Min Exi Min Machines Disabled . | . . . . . Max in Single Turn . | . . . . . Machines Sabotaged . | . . . . . Garrisons Compromised . | . . . . . Overloaded Fab Kills . | . . . . . Fab Network Shutdowns . | . . . . . Hacking | -11 -10 -10 -10 -9 --------- Run | Scr Mat Min Exi Min Machines Accessed 7 | . 6 . 1 . Terminals 4 | . 4 . . . Fabricators . | . . . . . Repair Stations . | . . . . . Recycling Units 2 | . 2 . . . Scanalyzers . | . . . . . Garrison Access . | . . . . . Total Hacks 22 | . 21 . 1 . Successful 17 | . 16 . 1 . Failed 5 | . 5 . . . Catastrophic . | . . . . . Database Lockouts . | . . . . . Manual 14 | . 13 . 1 . Terminals 19 | . 19 . . . Fabricators . | . . . . . Repair Stations . | . . . . . Recycling Units 2 | . 2 . . . Scanalyzers . | . . . . . Garrison Access . | . . . . . Terminal Hacks 11 | . 10 . 1 . Robot Analysis 2 | . 2 . . . Prototype ID Bank 1 | . 1 . . . Alert Level 1 | . 1 . . . Unreport Threat 2 | . 2 . . . Locate Traps 2 | . 2 . . . Disarm Traps 1 | . 1 . . . Zone Layout 1 | . 1 . . . EX-Prototype ID Bank 1 | . . . 1 . Fabricator Hacks . | . . . . . Repair Station Hacks . | . . . . . Recycling Unit Hacks . | . . . . . Scanalyzer . | . . . . . Garrison Access Hacks . | . . . . . Unauthorized Hacks 6 | . 6 . . . Terminals 4 | . 4 . . . Track 4 | . 4 . . . Fabricators . | . . . . . Repair Stations . | . . . . . Recycling Units 2 | . 2 . . . Tunnel 2 | . 2 . . . Scanalyzers . | . . . . . Garrison Access . | . . . . . Data Cores Recovered . | . . . . . Used . | . . . . . Hacking Detections 4 | . 4 . . . Full Trace Events . | . . . . . Feedback Events . | . . . . . Feedback Blocked . | . . . . . Robot Schematics Acquired . | . . . . . Robots Built . | . . . . . Matter . | . . . . . Time . | . . . . . Total Robot Build Rating . | . . . . . Part Schematics Acquired . | . . . . . Parts Built . | . . . . . Matter . | . . . . . Time . | . . . . . Total Part Build Rating . | . . . . . Parts Repaired . | . . . . . Time . | . . . . . Parts Recycled . | . . . . . Recycled Matter . | . . . . . Retrieved Matter . | . . . . . Retrieved Components . | . . . . . Parts Scanalyzed . | . . . . . Part Schematics Acquired . | . . . . . Parts Damaged . | . . . . . Bothacking | -11 -10 -10 -10 -9 ------------ Run | Scr Mat Min Exi Min Used RIF Installer . | . . . . . Robots Hacked . | . . . . . Non-combat . | . . . . . Combat . | . . . . . Robot Hacks Applied . | . . . . . Relay Couplers Released . | . . . . . Robots Rewired . | . . . . . Allies Hacked . | . . . . . Hacks Repelled . | . . . . . Allies | -11 -10 -10 -10 -9 -------- Run | Scr Mat Min Exi Min Total Allies . | . . . . . Largest Group . | . . . . . Highest-Rated Group . | . . . . . Highest-Rated Ally . | . . . . . Total Orders . | . . . . . Ally Attacks . | . . . . . Total Damage . | . . . . . Kills . | . . . . . Allies Corrupted . | . . . . . Allies Melted . | . . . . . Intel | -11 -10 -10 -10 -9 ------- Run | Scr Mat Min Exi Min Robot Analysis Total 2 | . 2 . . . Derelict Logs Recovered 2 | . . 1 . 1 Drone Launches . | . . . . . Drone Recoveries . | . . . . . Exploration | -11 -10 -10 -10 -9 ------------- Run | Scr Mat Min Exi Min Turns Passed 1702 | . 910 219 467 106 Spaces Moved 880 | 1 449 118 266 46 Core 3 | . 2 . . 1 Treads 856 | . 427 118 266 45 Legs 21 | 1 20 . . . Wheels . | . . . . . Hover . | . . . . . Flight . | . . . . . Fastest Speed 120 | 120 120 160 160 180 Average Speed 165 | 120 158 160 174 193 Slowest Speed 800 | 120 250 160 180 800 Overloaded Moves . | . . . . . Propulsion Burnouts . | . . . . . Robots Hopped . | . . . . . Cave-ins Triggered . | . . . . . Exploration Rate (%) 35 | 1 66 26 65 20 Regions Visited 4 Branch Regions 3 Pre-discovered Areas 3 | . 2 1 . . Known Exits Taken 2 | . 1 1 . . Unknown Exits Taken 2 | 1 . . 1 . Scrap Searched . | . . . . . Spaces Dug . | . . . . . Terrain Destroyed . | . . . . . Melee . | . . . . . Projectile . | . . . . . AOE . | . . . . . Terrain Rammed . | . . . . . Walls Destroyed . | . . . . . Machines Disabled . | . . . . . Actions | -11 -10 -10 -10 -9 --------- Run | Scr Mat Min Exi Min Total 1002 | . 549 129 270 54 Wait 10 | . 10 . . . Move 876 | . 448 117 265 46 Hop . | . . . . . Pick Up 14 | . 12 1 1 . Fast Attach 2 | . 2 . . . Attach 5 | . 4 . 1 . Detach 1 | . . . 1 . Swap 7 | . 6 . 1 . Drop 14 | . 12 1 1 . Fire 73 | . 55 10 . 8 Melee . | . . . . . Ram . | . . . . . Kick . | . . . . . Crush . | . . . . . Escape Stasis . | . . . . . Rewire . | . . . . . Trap . | . . . . . Miscellaneous . | . . . . . Route ------- -11/Scrapyard -10/Materials (discovered 3 exits: *Mat x2 / *Min) -10/Mines -10/Exiles -9/Mines History --------- Turn | Location | Event 1 | -11/Scrapyard | Discovered new exit (range 0) 1 | -11/Scrapyard | Entered Materials 245 | -10/Materials | Discovered new exit (range 16) 318 | -10/Materials | Build established: Mutant 579 | -10/Materials | Discovered new exit (range 16) 606 | -10/Materials | Identified exit to Materials 637 | -10/Materials | Core integrity fell below 50% 782 | -10/Materials | Discovered new exit (range 15) 847 | -10/Materials | Identified exit to Mines 911 | -10/Materials | Entered Mines 921 | -10/Mines | Met a Derelict bent on vengeance 1034 | -10/Mines | Learned location of Zion (-7) 1122 | -10/Mines | Deemed a non-threat by the Exiles lab entrance 1124 | -10/Mines | Discovered new exit (range 5) 1129 | -10/Mines | Identified exit to Exiles 1130 | -10/Mines | Entered Exiles 1174 | -10/Exiles | Met 8R-AWN 1196 | -10/Exiles | Met EX-HEX 1301 | -10/Exiles | Met EX-BIN 1340 | -10/Exiles | Aligned with FarCom system 1342 | -10/Exiles | Given EX-Vault access code 1383 | -10/Exiles | Opened EX-Vault 1392 | -10/Exiles | Found Longsword +1 1457 | -10/Exiles | Exiles lab attacked by MAIN.C 1577 | -10/Exiles | Discovered new exit (range 14) 1597 | -10/Exiles | Left Exiles lab with Longsword +1 1597 | -10/Exiles | Entered Mines 1646 | -9/Mines | Learned location of 1 exit from Proximity Caves 1661 | -9/Mines | Assembled infested the area 1693 | -9/Mines | Core integrity fell below 20% 1703 | -9/Mines | Destroyed by as-02744 with Assembled Heavy Rifle Last Messages --------------- GOAL=ESCAPE 01597_ Receiving FarCom transmissions... 01598_ AM-PHS: "That was close. Too bad in all the rush we got split up from the others." 01613_ AM-PHS: "Oh no, it's like what happened to the Exiles when they were wandering homeless, only there's no Warlord to save us!" 01646_ Acquired derelict log, extracted data. Data stored: Proximity Caves exits (x1). 01661_ ALERT: Infestation in the mines, dispatching Demolisher response squad. 01671_ as-91557 destroyed. 01682_ as-03913 destroyed. 01683_ AM-PHS destroyed. 01688_ Destroyed Asb. F-torch. 01693_ Ion Engine destroyed. 01698_ Matter Pump disabled. 01699_ Hvy. Assault Rifle destroyed. 01699_ Lgt. Treads destroyed. 01701_ as-14428 destroyed. 01702_ Lgt. Treads destroyed. Map ----- +----------------------------------------------------+ | ???????????????????????????????????????????????? | | ???????????????????????????????????????????????? | | ???????????????????????????????????????????????? | | ???????????????????????????????????????????????? | | ???????????????????????????????????????????????? | | ???????????????????????????? ??????########?? | | ??????????????????????????? #????## ### | | ??????????????????????????? #????# | | ??????????????????????????? #????# | | ??????????????????????????? #???# ### | | ???????????????????????????? #???## ##?## # | | ???????????????????????????? #????####???## # | | ???????????????????????????? #????????????# # | | ????????????????????????????# ##?########### # | | ???????????????????#???????## #?# # | | ??????????????????? ??????## #?# # | | ???????????????????# ????## #?# ########## | | ???????????????????# ???## #?# #????????? | | ????????????????????g#### #?# #????????? | | ????????????????????g ## #??# #????????? | | ????????????????????? g## #??# #????????? | | ???????????????????### """ #### #????????? | | ???????????????????# a """ u #????????? | | ???????????????????#$a d"" #????????? | | ???????????????????#%a = d #######????????? | | ???????????????????# #@ a #??????????????? | | ???????????????????#% ##??????????????? | | ?????????????????? a ##???????????????? | | ????????????????? ### ##????????????????? | | ??????????????? # ####?# #?????????????????? | | ????????????? #?# ?????# #?????????????????? | | ????????????#????# ?????# #?????????????????? | | ?????????????????#??????# ?????????????????? | | ???????????????????????? ????????????????? | | ???????????????????????# ???????????????? | | ????????????????????????? ??????????????? | | ????????????????????????? ?????????????? | | ????????????????????????????? ??????????????? | | ?????????????????????????????? ????????????????? | | ???????????????????????????????????????????????? | | ???????????????????????????????????????????????? | | ???????????????????????????????????????????????? | | ???????????????????????????????????????????????? | | ???????????????????????????????????????????????? | | ???????????????????????????????????????????????? | | ???????????????????????????????????????????????? | | ???????????????????????????????????????????????? | | ???????????????????????????????????????????????? | | ???????????????????????????????????????????????? | | ???????????????????????????????????????????????? | +----------------------------------------------------+ Best States ------------- Heat Dissipation 25 Energy Generation 10 Energy Capacity 250 Matter Stores 300 Matter Capacity 300 Sight Range 16 Terrain Scan Density 10 Evasion (%) 40 Recoil Reduction 2 Item Schematics ----------------- None Robot Schematics ------------------ None Fabricated ------------ Nothing Alien Tech Used ----------------- None Achievements -------------- None Challenges ------------ None Game ------ Seed NullSpikedFacilitator Manual? 0 Play Time 00:11:11 Cumulative 54.3 hours Start 2020.10.11 @ 01:26:32 End 2020.10.11 @ 01:40:17 Sessions 1 Manual Loads 0 Difficulty Rogue Special Mode None Game No. 96 Rogue 96 Adventurer 0 Explorer 0 Win Type - Total 0 Types 0/0/0/0/0/0/0/0/0 Lore% 29 Gallery% 44 Achievement% 32 Wizard Run 0 Options --------- ASCII 1 Keyboard 1 Movement Vi Keybinds 0 Fullscreen 2 Font 24/Crisp Map View 76x50 Tactical HUD 1 Map Filters SATURATION(70) Filters SATURATION(65)|SHIFT_HUE(15) Steam 1 RUN: f4b927bc-21c4-4714-bf91-5353dccc3220